Cogmind - Beta 13 @@@ ROGUE MODE // 2024.05.14 @ 23:52:43 Player: rel Result: Destroyed self with Rocket Launcher Performance ------------- Evolutions (0) 0 Regions Visited (2) 400 Robots Destroyed (20) 100 Value Destroyed (335) 335 Prototype IDs (3) 60 Alien Tech Used (0) 0 Bonus (0) 0 TOTAL SCORE: 895 Bonus ------- None Cogmind --------- Core Integrity 0/250 Matter 70/300 Energy 250/250 System Corruption 2% Temperature Cool (0) Movement Flying (250) Ox3 Location -10/Mines Parts ------- > --- POWER (1) -------- Ion Engine > --- PROPULSION (2) --- Improved Flight Unit > --- UTILITY (2) ------ Small Storage Unit Sensor Array > --- WEAPON (2) ------- Rocket Launcher Rocket Launcher > --- INVENTORY (8) ---- Structural Scanner Signal Interpreter ECM Suite Light Assault Rifle Datajack Peak State ------------ > --- POWER ------------ Light Ion Engine > --- PROPULSION ------- Improved Flight Unit Improved Flight Unit > --- UTILITY ---------- Small Storage Unit Hacking Suite > --- WEAPON ----------- Rocket Launcher Enhanced Flamer > --- INVENTORY -------- Ion Engine Sensor Array Signal Interpreter ECM Suite Light Assault Rifle Rocket Launcher Rocket Launcher Datajack [Rating: 17] Favorites ----------- Power Ion Engine Engine Ion Engine Propulsion Improved Flight Unit Treads Light Treads Leg Aluminum Leg Flight Unit Improved Flight Unit Utility Small Storage Unit Device Sensor Array Storage Small Storage Unit Hackware Hacking Suite Protection Hardened Light Armor Plating Weapon Rocket Launcher Energy Gun EM Pulse Gun Ballistic Gun Light Assault Rifle Launcher Rocket Launcher Special Weapon Mining Laser Special Melee Weapon Datajack Build | -11 -10 -10 ------- Run | Yrd Mat Min Slots Evolved . | . . . Power . | . . . Propulsion . | . . . Utility . | . . . Weapon . | . . . Parts Attached 54 | 7 33 14 Power 7 | 1 3 3 Engine 7 | 1 3 3 Core . | . . . Reactor . | . . . Propulsion 12 | 3 8 1 Treads 1 | 1 . . Leg 4 | 2 2 . Wheel . | . . . Hover . | . . . Flight 7 | . 6 1 Utility 7 | 1 5 1 Device 3 | . 2 1 Storage 2 | 1 1 . Processor . | . . . Hackware 1 | . 1 . Protection 1 | . 1 . Artifact . | . . . Weapon 28 | 2 17 9 Energy Gun 8 | 2 6 . Energy Cannon . | . . . Ballistic Gun 8 | . 4 4 Ballistic Cannon . | . . . Launcher 7 | . 3 4 Special Weapon 4 | . 3 1 Impact Weapon . | . . . Slashing Weapon . | . . . Piercing Weapon . | . . . Special Melee Weapon 1 | . 1 . Unidentified Prototypes 1 | . 1 . Parts Lost 9 | . 4 5 Power 3 | . 1 2 Propulsion 2 | . . 2 Utility . | . . . Weapon 4 | . 3 1 Highest Loss Streak 4 | . 4 3 To Critical Strikes . | . . . Average Slot Usage (%) 85 | . 67 96 Engine 13 | . 13 13 Flight 26 | . 24 27 Device 6 | . . 10 Storage 14 | . 14 14 Hackware 2 | . 1 3 Energy Gun 1 | . 3 . Ballistic Gun 3 | . 3 3 Launcher 13 | . . 21 Special Weapon 1 | . 1 . Naked Turns . | . . . Heaviest Build 19 | 14 19 15 Greatest Support 20 | 20 20 10 Greatest Overweight (x) 3 | . 3 2 Average Overweight (x) . | . . . Largest Inventory Capacity 8 | 8 8 8 Average Capacity 7 | 6 7 8 Most Carried 8 | 5 8 8 Average Carried 5 | 1 5 5 Final Capacity 8 | 8 8 8 Final Carried 7 | 1 7 5 Class Distribution -------------------- 89% | Mutant 10% | Scavenger-Mutant Dominant Class ---------------- Mutant | -10/Materials Mutant | -10/Mines Resources | -11 -10 -10 ----------- Run | Yrd Mat Min Matter Collected 618 | 198 275 145 Remotely . | . . . Salvage Created 332 | . 241 91 Parts 27 | . 17 10 Haulers Intercepted . | . . . Recyclers Shooed . | . . . Parts Field Recycled . | . . . Retrieved Matter . | . . . Parts Self-Destructed . | . . . Prevented . | . . . Kills | -11 -10 -10 ------- Run | Yrd Mat Min Combat Hostiles Destroyed 19 | . 12 7 Guns 11 | . 7 4 Cannons 2 | . . 2 AOE 5 | . 5 . Classes Destroyed 3 | . 3 . Operator 1 | . 1 . Swarmer 15 | . 9 6 Grunt 4 | . 3 1 Best Kill Streak 6 | . 6 4 Combat Bots Only 5 | . 5 4 Max Kills in Single Turn 2 | . 2 1 Gunslinging . | . . . Exploded 2 | . 2 . Melee . | . . . Uniques/NPCs Destroyed . | . . . Combat | -11 -10 -10 -------- Run | Yrd Mat Min Hostile Shots Fired 129 | . 79 50 Missed 35 | . 25 10 Damage Taken 915 | . 509 406 Core 258 | . 134 124 Absorbed by Shields . | . . . Regen/Repaired (Parts) 36 | . 36 . Core Remaining (%) 100 | 100 . . Volleys Fired 76 | . 52 24 Largest 2 | . 2 2 Hottest 100 | . 100 80 Shots Fired 97 | . 65 32 Gun 60 | . 41 19 Cannon . | . . . Launcher 8 | . 6 2 Special 29 | . 18 11 Kinetic 28 | . 9 19 Thermal 29 | . 18 11 Explosive 8 | . 6 2 Electromagnetic 32 | . 32 . Robot Hit Streak 7 | . 7 6 Robot Miss Streak 6 | . 6 3 Penetration Max . | . . . Secondary Targets . | . . . Shots Hit Robots 46 | . 27 19 Core Hits 29 | . 19 10 Critical Kills . | . . . Critical Parts Destroyed . | . . . Critical Strikes 4 | . . 4 Burn 4 | . . 4 Melee Attacks . | . . . Impact . | . . . Slashing . | . . . Piercing . | . . . Sneak Attacks . | . . . Combat Hostiles . | . . . Follow-up Attacks . | . . . Damage Inflicted 789 | . 602 187 Guns 339 | . 238 101 Cannons . | . . . Explosions 364 | . 364 . Melee . | . . . Ramming . | . . . Kinetic 140 | . 39 101 Thermal 86 | . . 86 Explosive 364 | . 364 . Electromagnetic 199 | . 199 . Impact . | . . . Slashing . | . . . Piercing . | . . . Highest Corruption 2 | . 2 2 Average Corruption 2 | . 2 2 Corruption Purged . | . . . Corruption Blocked . | . . . Effects 18 | . 4 14 Message Errors 3 | . 1 2 Matter Fused 6 | . 1 5 Heat Flow Errors 4 | . . 4 Energy Discharges 1 | . . 1 Data Loss (minor) 2 | . . 2 Data Loss (major) 2 | . 2 . Overload Shots . | . . . Overflow Damage 19 | . 12 7 Projectiles . | . . . Explosions 19 | . 12 7 Melee . | . . . Knockbacks . | . . . Impact . | . . . Kinetic . | . . . Secondary . | . . . Self-Inflicted Damage 95 | . . 95 Shots 2 | . . 2 Rammed . | . . . Targets Rammed . | . . . Kicked . | . . . Crushed . | . . . Highest Temperature 317 | . 240 317 Average Temperature 98 | . 76 137 Received Heat Transfer 78 | . 42 36 Siege Activations . | . . . Robots Corrupted . | . . . Combat Hostiles . | . . . Parts Fried . | . . . Impact Corruptions . | . . . Robots Melted 1 | . . 1 Combat Hostiles 1 | . . 1 Parts Melted 3 | . . 3 Heat Transferred 1280 | . . 1280 Parts Sabotaged . | . . . Parts Stolen . | . . . Parts Stripped . | . . . Power Chain Reactions . | . . . Alert | -11 -10 -10 ------- Run | Yrd Mat Min Peak Influence 331 | . 331 259 Initial 129 | . . 129 Average 133 | . 177 112 Maximum Alert Level 1 | . 1 1 Low Security (%) 67 | 100 53 73 Level 1 32 | . 46 26 Level 2 . | . . . Level 3 . | . . . Level 4 . | . . . Level 5 . | . . . High Security . | . . . Max Security . | . . . Squads Dispatched 2 | . 2 . Investigation . | . . . Extermination . | . . . Reinforcement 2 | . 2 . Assault . | . . . Garrison . | . . . Intercept . | . . . Searches Triggered . | . . . Construction Impeded . | . . . Haulers Reinforced . | . . . Active Scanning Responses . | . . . Cargo Convoy Interrupts . | . . . Stealth | -11 -10 -10 --------- Run | Yrd Mat Min Distress Signals 1 | . . 1 Communications Jammed . | . . . Distress Signals . | . . . Times Spotted 33 | . 25 8 Peak Tracking Total 6 | . 6 5 Tactical Retreats 2 | . 2 . Traps | -11 -10 -10 ------- Run | Yrd Mat Min Traps Triggered 1 | . 1 . Indirectly . | . . . Trap Hack Attempts . | . . . Triggered . | . . . Disarmed . | . . . Reprogrammed . | . . . Reused . | . . . Traps Extracted . | . . . Installed . | . . . Triggered . | . . . Machines | -11 -10 -10 ---------- Run | Yrd Mat Min Machines Disabled 2 | . 2 . Max in Single Turn 1 | . 1 . Machines Repaired . | . . . Machines Dismantled . | . . . Machines Sabotaged . | . . . Overloaded Fab Kills . | . . . Hacking | -11 -10 -10 --------- Run | Yrd Mat Min Machines Accessed 5 | . 5 . Terminals 4 | . 4 . Fabricators . | . . . Repair Stations 1 | . 1 . Recycling Units . | . . . Scanalyzers . | . . . Garrison Access . | . . . Total Hacks 14 | . 14 . Successful 8 | . 8 . Failed 6 | . 6 . Catastrophic 2 | . 2 . Database Lockouts . | . . . Manual . | . . . Terminals 11 | . 11 . Fabricators . | . . . Repair Stations 3 | . 3 . Recycling Units . | . . . Scanalyzers . | . . . Garrison Access . | . . . Terminal Hacks 6 | . 6 . Prototype ID Bank 1 | . 1 . Level Access Points 1 | . 1 . Branch Access Points 1 | . 1 . Emergency Access Points 1 | . 1 . Terminal Index 1 | . 1 . Recall Investigation 1 | . 1 . Fabricator Hacks . | . . . Repair Station Hacks 2 | . 2 . Scan Component 1 | . 1 . Repair 1 | . 1 . Recycling Unit Hacks . | . . . Scanalyzer . | . . . Garrison Access Hacks . | . . . Unauthorized Hacks . | . . . Terminals . | . . . Fabricators . | . . . Repair Stations . | . . . Recycling Units . | . . . Scanalyzers . | . . . Garrison Access . | . . . Data Cores Recovered . | . . . Used . | . . . Hacking Detections 5 | . 5 . Full Trace Events 1 | . 1 . Feedback Events . | . . . Feedback Blocked . | . . . Robot Schematics Acquired . | . . . Robots Built . | . . . Authchips . | . . . Time . | . . . Total Robot Build Rating . | . . . Part Schematics Acquired . | . . . Parts Built . | . . . Authchips . | . . . Time . | . . . Total Part Build Rating . | . . . Parts Repaired 1 | . 1 . Time 51 | . 51 . Parts Recycled . | . . . Recycled Matter . | . . . Retrieved Matter . | . . . Retrieved Components . | . . . Parts Scanalyzed . | . . . Part Schematics Acquired . | . . . Parts Damaged . | . . . Bothacking | -11 -10 -10 ------------ Run | Yrd Mat Min Used RIF Installer . | . . . Robots Hacked . | . . . Non-combat . | . . . Combat . | . . . Robot Hacks Applied . | . . . Relay Couplers Released . | . . . Fabnet Peak Effective % . | . . . Robots Rewired . | . . . Allies Hacked . | . . . Hacks Repelled . | . . . Allies | -11 -10 -10 -------- Run | Yrd Mat Min Total Allies . | . . . Largest Group . | . . . Highest-Rated Group . | . . . Highest-Rated Ally . | . . . Total Orders . | . . . Ally Attacks . | . . . Total Damage . | . . . Kills . | . . . Allies Corrupted . | . . . Allies Melted . | . . . Intel | -11 -10 -10 ------- Run | Yrd Mat Min Robot Analysis Total . | . . . Derelict Logs Recovered . | . . . Drone Launches . | . . . Drone Recoveries . | . . . Exploration | -11 -10 -10 ------------- Run | Yrd Mat Min Turns Passed 1734 | 64 652 1018 Spaces Moved 1099 | 49 791 259 Core 14 | 14 . . Treads . | . . . Legs 50 | 35 15 . Wheels . | . . . Hover . | . . . Flight 1035 | . 776 259 Fastest Speed 37 | 50 37 37 Average Speed 48 | 100 39 65 Slowest Speed 260 | 120 260 180 Overloaded Moves . | . . . Propulsion Burnouts . | . . . Robots Hopped 11 | . 11 . Cave-ins Triggered 1 | . 1 . Exploration Rate (%) 53 | 3 96 60 Regions Visited 2 Branch Regions 1 Pre-discovered Areas . | . . . Known Exits Taken 1 | . 1 . Unknown Exits Taken 1 | 1 . . Scrap Searched 1 | . . 1 Spaces Dug 18 | . 18 . Terrain Destroyed 32 | . 27 5 Melee . | . . . Projectile 18 | . 18 . AOE 14 | . 9 5 Terrain Rammed . | . . . Walls Destroyed . | . . . Machines Disabled . | . . . Actions | -11 -10 -10 --------- Run | Yrd Mat Min Total 2168 | 64 1031 1073 Wait 884 | . 121 763 Move 1076 | 48 769 259 Hop 10 | . 10 . Pick Up 34 | 8 20 6 Fast Attach 4 | . 3 1 Attach 38 | 7 24 7 Detach 19 | . 17 2 Swap 12 | . 6 6 Drop 15 | 1 9 5 Fire 76 | . 52 24 Melee . | . . . Ram . | . . . Kick . | . . . Crush . | . . . Escape Stasis . | . . . Rewire . | . . . Trap . | . . . Miscellaneous . | . . . Route ------- -11/Scrapyard -10/Materials (discovered 5 exits: *Mat x3 / *Min x2) -10/Mines (discovered 1 exit: *Mat) History --------- Turn | Location | Event 20 | -11/Scrapyard | Discovered new exit (range 16) 65 | -11/Scrapyard | Entered Materials 240 | -10/Materials | Discovered new exit (range 12) 246 | -10/Materials | Identified exit to Mines 246 | -10/Materials | Identified exit to Materials 326 | -10/Materials | Crushed by falling debris 328 | -10/Materials | Build established: Mutant 442 | -10/Materials | Lost 4 parts (1p3w) 555 | -10/Materials | Repaired Imp. Flight Unit 626 | -10/Materials | Core integrity fell below 50% 717 | -10/Materials | Entered Mines 794 | -10/Mines | Received a Rocket Launcher from a helpful Derelict 808 | -10/Mines | Discovered exit to Materials (range 13) 831 | -10/Mines | A weapon hastily lodged in a ceiling crevice suddenly fell to the ground 869 | -10/Mines | Core integrity fell below 20% 911 | -10/Mines | Lost 3 parts (1p1n1w) 978 | -10/Mines | Excavation squad dispatched 978 | -10/Mines | A large section of the Mines collapsed 1228 | -10/Mines | Excavation squad dispatched 1478 | -10/Mines | Excavation squad dispatched 1728 | -10/Mines | Excavation squad dispatched 1735 | -10/Mines | Destroyed self with Rocket Launcher Last Messages --------------- 00984_ VCRCZR,YMB#W1D&VRV=8/1 01048_ System corrupted: Energy discharge (-100). 01098_ System corrupted: Matter fused (-7). 01191_ System corrupted: Matter fused (-5). 01228_ ALERT: Derelict activity in mines confirmed. Dispatching additional escorted excavation squad. 01255_ System corrupted: Matter fused (-8). 01341_ System corrupted: Matter fused (-6). 01463_ System corrupted: Component data lost. 01478_ ALERT: Derelict activity in mines confirmed. Dispatching additional escorted excavation squad. 01507_ /,SHNAT/Z2BJ0DSG%L3084SNXI4UC BAM/JJJPRQ 01558_ System corrupted: Heat flow error (+113). 01583_ System corrupted: Matter fused (-10). 01649_ System corrupted: Component data lost. 01671_ System corrupted: Heat flow error (+170). 01728_ ALERT: Derelict activity in mines confirmed. Dispatching additional escorted excavation squad. 01735_ Flight Unit destroyed. 01735_ Destroyed Flight Unit. Map ----- +----------------------------------------------------+ | | | | | | | | | | | | | | | | | | | | | | | | | | | ???????????????????????????????????????????????? | | ???????????????????????????????????????????????? | | ???????????????????????????????????????????????# | | ???????????????????????????????????????????????# | | ???????????????????????????????????????????????# | | ???????????????????????????????????????????????# | | ???????????????????????????????????????????????# | | ????????????????????????????????????????????#### | | ?????????????????######????????????????????## # | | ????????????????## #####??????????????????# | | ????????????????# ## ###?????????????????# | | ????????????????# #a ##?????????????????# | | ?????????????????# # @ ################### | | ?????????????????#### | | ????????????????????#### ############## # | | ???????????????????????? #????????????# ###### | | ?????????????????????????###????????????# #????? | | ????????????????????????????????????????# #????? | | ???????????????????????????????????????? #????? | | ????????????????????????????????????????######?? | | ????????????????????????????????????????## ##? | | ????????????????????????????????????????# #? | | ???????????????????????????????????????## #? | | ??????????????????????????????????????## #? | | ??????????????????????????????????????# #?? | | ?????????????????????????????########## ##? | | ?????????????????????????????# ## | | ?????????????????????????????# ####### # | | ?????????????????????????????# #?????## ### | | ?????????????????????????????# #??????####?## | | ?????????????????????????????# #????????????# | | ????????????????????""?"?????# #???????????## | | ??????????????????? ????# #???????????# | | ????????????????????"" ""????# #???????????# | | ???????????????????""" """???# #???????????## | | ???????????????????""" """???# #????????????## | | ??????????????????? ??# #?????????????## | +----------------------------------------------------+ Best States ------------- Heat Dissipation 25 Energy Generation 10 Energy Capacity 250 Matter Stores 247 Matter Capacity 300 Sight Range 16 Robot Scan Range 14 Terrain Scan Density 10 ECM Strength 1 Armor Coverage 150 Evasion (%) 62 Offensive Hacking 10 Item Schematics ----------------- None Robot Schematics ------------------ None Fabricated ------------ Nothing Alien Tech Used ----------------- None Achievements -------------- None Challenges ------------ None Game ------ Seed MolecularBiomechanicalDevice Manual? 0 Play Time 00:22:14 Cumulative 19.7 hours Start 2024.05.14 @ 23:28:31 End 2024.05.14 @ 23:52:43 Sessions 1 Manual Loads 0 Difficulty Rogue Special Mode None Game No. 26 Rogue 26 Adventurer 0 Explorer 0 Win Type - Total 0 Types 0/0/0/0/0/0/0/0/0 Lore% 20 Gallery% 29 Achievement% 20 Wizard Run 0 Options --------- Layout 0 ASCII 0 Keyboard 0 Movement Mouse Keybinds 0 Fullscreen 1 Font 24/Smallcaps Map View 76x50 Zoom Use 7% Tactical HUD 1 Map Filters NONE Filters NONE Steam 1 RUN: e9cc6e7a-4943-48d2-b78f-0dc66a77f69a